[Event "Titled Tuesday Blitz November 07 Early 2023"]
[White "Melian, Juan Sebastian"]
[Black "Minina, Veronika"]
[WhiteFideId "3706575"]
[BlackFideId "4174780"]
[WhiteElo "2654"]
[BlackElo "2323"]
[Result "1-0"]
[Round "1"]
[TimeControl "180+1"]
[Date "2023.11.07"]
[WhiteClock "0:00:16"]
[BlackClock "0:00:05"]
[Board "161"]

1. e4 {[%clk 0:02:50]}  c5 {[%clk 0:02:59]} 2. Nf3 {[%clk 0:02:50]}  Nc6 {[%clk 0:03:00]} 3. c3 {[%clk 0:02:50]}  d5 {[%clk 0:02:59]} 4. exd5 {[%clk 0:02:50]}  Qxd5 {[%clk 0:02:59]} 5. Na3 {[%clk 0:02:49]}  e5 {[%clk 0:02:43]} 6. d3 {[%clk 0:02:44]}  Nf6 {[%clk 0:02:41]} 7. Be2 {[%clk 0:02:08]}  Be7 {[%clk 0:02:38]} 8. O-O {[%clk 0:01:58]}  O-O {[%clk 0:02:38]} 9. Nc4 {[%clk 0:01:55]}  b6 {[%clk 0:02:15]} 10. Re1 {[%clk 0:01:40]}  Bb7 {[%clk 0:02:15]} 11. Bf1 {[%clk 0:01:40]}  Nd7 {[%clk 0:01:55]} 12. d4 {[%clk 0:01:17]}  cxd4 {[%clk 0:01:46]} 13. cxd4 {[%clk 0:01:17]}  e4 {[%clk 0:01:37]} 14. Ne3 {[%clk 0:01:03]}  Qh5 {[%clk 0:01:00]} 15. Nd2 {[%clk 0:00:36]}  Qxd1 {[%clk 0:00:58]} 16. Rxd1 {[%clk 0:00:37]}  Nxd4 {[%clk 0:00:54]} 17. Nxe4 {[%clk 0:00:37]}  Bxe4 {[%clk 0:00:42]} 18. Rxd4 {[%clk 0:00:35]}  Nf6 {[%clk 0:00:42]} 19. Rd1 {[%clk 0:00:16]}  Rac8 {[%clk 0:00:39]} 20. Bd2 {[%clk 0:00:16]}  Bc5 {[%clk 0:00:34]} 21. Rac1 {[%clk 0:00:16]}  Bd4 {[%clk 0:00:34]} 22. Bc3 {[%clk 0:00:15]}  Bxc3 {[%clk 0:00:32]} 23. bxc3 {[%clk 0:00:15]}  h6 {[%clk 0:00:31]} 24. f3 {[%clk 0:00:16]}  Bb7 {[%clk 0:00:29]} 25. Rd6 {[%clk 0:00:15]}  Rfe8 {[%clk 0:00:29]} 26. Kf2 {[%clk 0:00:15]}  Re7 {[%clk 0:00:26]} 27. c4 {[%clk 0:00:10]}  Rec7 {[%clk 0:00:26]} 28. Rcd1 {[%clk 0:00:10]}  Ne8 {[%clk 0:00:17]} 29. Rd8 {[%clk 0:00:10]}  Kf8 {[%clk 0:00:18]} 30. g4 {[%clk 0:00:10]}  Rxd8 {[%clk 0:00:18]} 31. Rxd8 {[%clk 0:00:11]}  Ke7 {[%clk 0:00:18]} 32. Rd4 {[%clk 0:00:10]}  Nf6 {[%clk 0:00:17]} 33. Nf5+ {[%clk 0:00:08]}  Kf8 {[%clk 0:00:14]} 34. Rd8+ {[%clk 0:00:08]}  Ne8 {[%clk 0:00:15]} 35. Nd6 {[%clk 0:00:06]}  Re7 {[%clk 0:00:14]} 36. Rxe8+ {[%clk 0:00:06]}  Rxe8 {[%clk 0:00:14]} 37. Nxb7 {[%clk 0:00:07]}  Rc8 {[%clk 0:00:13]} 38. Nd6 {[%clk 0:00:07]}  Rc5 {[%clk 0:00:13]} 39. Ne4 {[%clk 0:00:07]}  Ra5 {[%clk 0:00:13]} 40. Nc3 {[%clk 0:00:08]}  Ra3 {[%clk 0:00:13]} 41. Nb5 {[%clk 0:00:07]}  Rxa2+ {[%clk 0:00:13]} 42. Kg3 {[%clk 0:00:08]}  a5 {[%clk 0:00:13]} 43. h4 {[%clk 0:00:07]}  a4 {[%clk 0:00:14]} 44. Kf4 {[%clk 0:00:04]}  Rb2 {[%clk 0:00:13]} 45. Bd3 {[%clk 0:00:04]}  Rb3 {[%clk 0:00:13]} 46. Ke4 {[%clk 0:00:05]}  a3 {[%clk 0:00:12]} 47. Bc2 {[%clk 0:00:05]}  Rb4 {[%clk 0:00:06]} 48. Nxa3 {[%clk 0:00:04]}  Ke7 {[%clk 0:00:07]} 49. Kd4 {[%clk 0:00:05]}  Rb2 {[%clk 0:00:06]} 50. Kc3 {[%clk 0:00:05]}  Ra2 {[%clk 0:00:02]} 51. Kb3 {[%clk 0:00:06]}  Ra1 {[%clk 0:00:03]} 52. Bb1 {[%clk 0:00:06]}  b5 {[%clk 0:00:02]} 53. Kb2 {[%clk 0:00:06]}  Rxb1+ {[%clk 0:00:02]} 54. Kxb1 {[%clk 0:00:06]}  bxc4 {[%clk 0:00:03]} 55. Nxc4 {[%clk 0:00:07]}  Kf6 {[%clk 0:00:03]} 56. Kc2 {[%clk 0:00:07]}  Kg6 {[%clk 0:00:04]} 57. Kd3 {[%clk 0:00:08]}  f5 {[%clk 0:00:05]} 58. Ke3 {[%clk 0:00:07]}  fxg4 {[%clk 0:00:05]} 59. fxg4 {[%clk 0:00:08]}  Kf6 {[%clk 0:00:05]} 60. Kf4 {[%clk 0:00:08]}  g6 {[%clk 0:00:06]} 61. g5+ {[%clk 0:00:08]}  hxg5+ {[%clk 0:00:05]} 62. hxg5+ {[%clk 0:00:09]}  Ke6 {[%clk 0:00:05]} 63. Ke4 {[%clk 0:00:09]}  Ke7 {[%clk 0:00:04]} 64. Ke5 {[%clk 0:00:10]}  Kf7 {[%clk 0:00:04]} 65. Kd6 {[%clk 0:00:10]}  Kg7 {[%clk 0:00:05]} 66. Ke7 {[%clk 0:00:11]}  Kh7 {[%clk 0:00:05]} 67. Kf7 {[%clk 0:00:12]}  Kh8 {[%clk 0:00:06]} 68. Kxg6 {[%clk 0:00:13]}  Kg8 {[%clk 0:00:06]} 69. Kh6 {[%clk 0:00:13]}  Kh8 {[%clk 0:00:07]} 70. g6 {[%clk 0:00:14]}  Kg8 {[%clk 0:00:07]} 71. g7 {[%clk 0:00:15]}  Kf7 {[%clk 0:00:05]} 72. Kh7 {[%clk 0:00:16]} 1-0


[Site "https://www.chess.com"]

[Event "Titled Tuesday Blitz November 07 Early 2023"]
[White "Fernandez Siles, Luis"]
[Black "Skliarov, Viktor"]
[WhiteFideId "2209420"]
[BlackFideId "14106736"]
[WhiteElo "2320"]
[BlackElo "2654"]
[Result "0-1"]
[Round "1"]
[TimeControl "180+1"]
[Date "2023.11.07"]
[WhiteClock "0:00:30"]
[BlackClock "0:00:44"]
[Board "162"]

1. e4 {[%clk 0:03:00]}  c5 {[%clk 0:02:59]} 2. Nf3 {[%clk 0:03:00]}  Nc6 {[%clk 0:02:59]} 3. d4 {[%clk 0:02:59]}  cxd4 {[%clk 0:03:00]} 4. Nxd4 {[%clk 0:02:59]}  Nf6 {[%clk 0:03:00]} 5. Nc3 {[%clk 0:02:59]}  e5 {[%clk 0:03:00]} 6. Ndb5 {[%clk 0:02:59]}  d6 {[%clk 0:03:01]} 7. Nd5 {[%clk 0:02:58]}  Nxd5 {[%clk 0:03:01]} 8. exd5 {[%clk 0:02:59]}  Nb8 {[%clk 0:03:01]} 9. c4 {[%clk 0:02:59]}  Be7 {[%clk 0:03:01]} 10. Bd3 {[%clk 0:02:59]}  O-O {[%clk 0:03:00]} 11. O-O {[%clk 0:02:58]}  a6 {[%clk 0:03:00]} 12. Nc3 {[%clk 0:02:57]}  f5 {[%clk 0:03:00]} 13. f3 {[%clk 0:02:57]}  Nd7 {[%clk 0:02:58]} 14. Kh1 {[%clk 0:02:56]}  Bg5 {[%clk 0:02:57]} 15. a3 {[%clk 0:02:52]}  Nc5 {[%clk 0:02:42]} 16. Bc2 {[%clk 0:02:42]}  a5 {[%clk 0:02:37]} 17. Nb5 {[%clk 0:02:36]}  Ra6 {[%clk 0:02:10]} 18. b4 {[%clk 0:02:14]}  Bxc1 {[%clk 0:02:03]} 19. bxc5 {[%clk 0:02:05]}  Be3 {[%clk 0:01:46]} 20. cxd6 {[%clk 0:01:58]}  Bd7 {[%clk 0:01:43]} 21. Qd3 {[%clk 0:01:48]}  Bc5 {[%clk 0:01:41]} 22. g4 {[%clk 0:01:30]}  Bxb5 {[%clk 0:01:13]} 23. cxb5 {[%clk 0:01:27]}  Rxd6 {[%clk 0:01:13]} 24. gxf5 {[%clk 0:01:19]}  Rh6 {[%clk 0:01:09]} 25. Bb3 {[%clk 0:00:49]}  Rxh2+ {[%clk 0:00:44]} 26. Kxh2 {[%clk 0:00:46]}  Qh4+ {[%clk 0:00:45]} 27. Kg2 {[%clk 0:00:46]}  Qg5+ {[%clk 0:00:45]} 28. Kh3 {[%clk 0:00:44]}  Rf6 {[%clk 0:00:45]} 29. d6+ {[%clk 0:00:30]}  Kf8 {[%clk 0:00:44]} 0-1


[Site "https://www.chess.com"]

[Event "Titled Tuesday Blitz November 07 Early 2023"]
[White "HamedWafa4"]
[Black "patzersame"]
[WhiteElo "2650"]
[BlackElo "2320"]
[Result "1-0"]
[Round "1"]
[TimeControl "180+1"]
[Date "2023.11.07"]
[WhiteClock "0:01:11"]
[BlackClock "0:00:47"]
[Board "163"]

1. d4 {[%clk 0:02:59]}  d5 {[%clk 0:02:56]} 2. Bf4 {[%clk 0:02:57]}  Nf6 {[%clk 0:02:55]} 3. Nc3 {[%clk 0:02:56]}  c6 {[%clk 0:02:52]} 4. e3 {[%clk 0:02:54]}  e6 {[%clk 0:02:52]} 5. Nf3 {[%clk 0:02:51]}  Bd6 {[%clk 0:02:52]} 6. Bd3 {[%clk 0:02:48]}  O-O {[%clk 0:02:48]} 7. O-O {[%clk 0:02:46]}  Bxf4 {[%clk 0:02:49]} 8. exf4 {[%clk 0:02:46]}  Nbd7 {[%clk 0:02:45]} 9. Ne2 {[%clk 0:02:34]}  Ne4 {[%clk 0:02:41]} 10. Ng3 {[%clk 0:02:31]}  f5 {[%clk 0:02:29]} 11. Ne5 {[%clk 0:02:27]}  Ndf6 {[%clk 0:02:03]} 12. Ne2 {[%clk 0:02:20]}  Bd7 {[%clk 0:02:01]} 13. f3 {[%clk 0:02:13]}  Nd6 {[%clk 0:02:00]} 14. c3 {[%clk 0:02:11]}  Rc8 {[%clk 0:02:01]} 15. Kh1 {[%clk 0:02:09]}  c5 {[%clk 0:01:55]} 16. dxc5 {[%clk 0:02:09]}  Rxc5 {[%clk 0:01:54]} 17. Nd4 {[%clk 0:02:09]}  Qe8 {[%clk 0:01:45]} 18. Re1 {[%clk 0:02:03]}  Qh5 {[%clk 0:01:44]} 19. Nxd7 {[%clk 0:02:01]}  Nxd7 {[%clk 0:01:42]} 20. Nxe6 {[%clk 0:02:01]}  Rcc8 {[%clk 0:01:40]} 21. Nxf8 {[%clk 0:02:01]}  Rxf8 {[%clk 0:01:40]} 22. Bb5 {[%clk 0:01:59]}  Nf6 {[%clk 0:01:40]} 23. Ba4 {[%clk 0:01:57]}  Qh4 {[%clk 0:01:40]} 24. Qd4 {[%clk 0:01:52]}  Kh8 {[%clk 0:01:34]} 25. Qc5 {[%clk 0:01:42]}  Qxf4 {[%clk 0:01:30]} 26. Qd4 {[%clk 0:01:39]}  Qh6 {[%clk 0:01:25]} 27. Bb3 {[%clk 0:01:35]}  f4 {[%clk 0:01:23]} 28. Qc5 {[%clk 0:01:30]}  Nh5 {[%clk 0:01:04]} 29. Qxd5 {[%clk 0:01:19]}  Ng3+ {[%clk 0:01:00]} 30. Kg1 {[%clk 0:01:18]}  Ngf5 {[%clk 0:01:01]} 31. Re6 {[%clk 0:01:14]}  Rf6 {[%clk 0:00:47]} 32. Rxf6 {[%clk 0:01:11]}  Qxf6 {[%clk 0:00:47]} 33. Qg8# {[%clk 0:01:11]} 1-0


[Site "https://www.chess.com"]

[Event "Titled Tuesday Blitz November 07 Early 2023"]
[White "Kislinsky, Alexey"]
[Black "Harriott, Tyrell"]
[WhiteFideId "14108801"]
[BlackFideId "2086484"]
[WhiteElo "2647"]
[BlackElo "2319"]
[Result "0-1"]
[Round "1"]
[TimeControl "180+1"]
[Date "2023.11.07"]
[WhiteClock "0:00:59"]
[BlackClock "0:00:28"]
[Board "165"]

1. e4 {[%clk 0:03:00]}  d5 {[%clk 0:02:56]} 2. exd5 {[%clk 0:03:01]}  Nf6 {[%clk 0:02:55]} 3. Bb5+ {[%clk 0:02:59]}  Nbd7 {[%clk 0:02:55]} 4. d4 {[%clk 0:02:56]}  a6 {[%clk 0:02:52]} 5. Bd3 {[%clk 0:02:56]}  b5 {[%clk 0:02:51]} 6. Nf3 {[%clk 0:02:54]}  Bb7 {[%clk 0:02:51]} 7. O-O {[%clk 0:02:54]}  g6 {[%clk 0:02:51]} 8. a4 {[%clk 0:02:52]}  b4 {[%clk 0:02:48]} 9. Re1 {[%clk 0:02:51]}  Bg7 {[%clk 0:02:47]} 10. c4 {[%clk 0:02:26]}  bxc3 {[%clk 0:02:46]} 11. bxc3 {[%clk 0:02:26]}  Nxd5 {[%clk 0:02:46]} 12. c4 {[%clk 0:02:26]}  N5f6 {[%clk 0:02:45]} 13. Ba3 {[%clk 0:02:24]}  c5 {[%clk 0:02:42]} 14. Nbd2 {[%clk 0:02:13]}  O-O {[%clk 0:02:40]} 15. Nb3 {[%clk 0:02:12]}  Re8 {[%clk 0:02:32]} 16. Nxc5 {[%clk 0:02:08]}  Nxc5 {[%clk 0:02:27]} 17. Bxc5 {[%clk 0:02:09]}  Rc8 {[%clk 0:02:25]} 18. Rb1 {[%clk 0:02:08]}  Bc6 {[%clk 0:02:18]} 19. Bb6 {[%clk 0:02:04]}  Qd7 {[%clk 0:02:16]} 20. Ne5 {[%clk 0:02:03]}  Qb7 {[%clk 0:02:02]} 21. d5 {[%clk 0:01:45]}  Bd7 {[%clk 0:01:38]} 22. a5 {[%clk 0:01:32]}  Bf5 {[%clk 0:01:29]} 23. Bxf5 {[%clk 0:01:31]}  gxf5 {[%clk 0:01:29]} 24. Qf3 {[%clk 0:01:25]}  Ne4 {[%clk 0:01:21]} 25. Qxf5 {[%clk 0:01:23]}  Nd2 {[%clk 0:01:16]} 26. Qxf7+ {[%clk 0:01:22]}  Kh8 {[%clk 0:01:16]} 27. Bd4 {[%clk 0:01:10]}  Qxb1 {[%clk 0:00:30]} 28. Ng6+ {[%clk 0:00:59]}  Qxg6 {[%clk 0:00:28]} 0-1


[Site "https://www.chess.com"]

[Event "Titled Tuesday Blitz November 07 Early 2023"]
[White "Maect19"]
[Black "Thomforde-Toates, Noah"]
[BlackFideId "30951992"]
[WhiteElo "2318"]
[BlackElo "2644"]
[Result "0-1"]
[Round "1"]
[TimeControl "180+1"]
[Date "2023.11.07"]
[WhiteClock "0:00:09"]
[BlackClock "0:00:46"]
[Board "168"]

1. d4 {[%clk 0:02:56]}  Nf6 {[%clk 0:02:53]} 2. Nf3 {[%clk 0:02:55]}  g6 {[%clk 0:02:50]} 3. c3 {[%clk 0:02:54]}  Bg7 {[%clk 0:02:50]} 4. Bg5 {[%clk 0:02:53]}  d6 {[%clk 0:02:49]} 5. Nbd2 {[%clk 0:02:52]}  Nbd7 {[%clk 0:02:48]} 6. e4 {[%clk 0:02:52]}  e5 {[%clk 0:02:48]} 7. dxe5 {[%clk 0:02:51]}  dxe5 {[%clk 0:02:47]} 8. Bc4 {[%clk 0:02:51]}  c6 {[%clk 0:02:44]} 9. O-O {[%clk 0:02:48]}  Qc7 {[%clk 0:02:43]} 10. Qe2 {[%clk 0:02:46]}  O-O {[%clk 0:02:43]} 11. Rfd1 {[%clk 0:02:45]}  h6 {[%clk 0:02:39]} 12. Bh4 {[%clk 0:02:31]}  Nh5 {[%clk 0:02:35]} 13. Bg3 {[%clk 0:02:28]}  a5 {[%clk 0:02:32]} 14. a4 {[%clk 0:02:27]}  Nc5 {[%clk 0:02:23]} 15. Nf1 {[%clk 0:02:16]}  Re8 {[%clk 0:02:18]} 16. Qc2 {[%clk 0:01:54]}  Nf4 {[%clk 0:02:12]} 17. Ne3 {[%clk 0:01:48]}  Be6 {[%clk 0:02:04]} 18. Bxe6 {[%clk 0:01:45]}  Ncxe6 {[%clk 0:02:05]} 19. Nc4 {[%clk 0:01:41]}  Red8 {[%clk 0:02:02]} 20. Rxd8+ {[%clk 0:01:39]}  Rxd8 {[%clk 0:02:03]} 21. Rd1 {[%clk 0:01:39]}  Rxd1+ {[%clk 0:01:59]} 22. Qxd1 {[%clk 0:01:38]}  Nc5 {[%clk 0:01:55]} 23. Bxf4 {[%clk 0:01:24]}  exf4 {[%clk 0:01:53]} 24. Qc2 {[%clk 0:01:20]}  b5 {[%clk 0:01:50]} 25. axb5 {[%clk 0:01:16]}  cxb5 {[%clk 0:01:51]} 26. Ncd2 {[%clk 0:01:14]}  g5 {[%clk 0:01:51]} 27. Nd4 {[%clk 0:01:09]}  Qd7 {[%clk 0:01:14]} 28. Nf5 {[%clk 0:00:59]}  Qd3 {[%clk 0:01:10]} 29. Qxd3 {[%clk 0:00:35]}  Nxd3 {[%clk 0:01:11]} 30. Nxg7 {[%clk 0:00:35]}  Kxg7 {[%clk 0:01:12]} 31. c4 {[%clk 0:00:26]}  b4 {[%clk 0:01:07]} 32. b3 {[%clk 0:00:25]}  Kf6 {[%clk 0:01:07]} 33. Kf1 {[%clk 0:00:22]}  Ke5 {[%clk 0:01:06]} 34. Nf3+ {[%clk 0:00:22]}  Kxe4 {[%clk 0:01:04]} 35. Nd2+ {[%clk 0:00:17]}  Kd4 {[%clk 0:01:04]} 36. Ke2 {[%clk 0:00:17]}  Kc3 {[%clk 0:01:03]} 37. Ne4+ {[%clk 0:00:16]}  Kc2 {[%clk 0:01:03]} 38. c5 {[%clk 0:00:16]}  Ne5 {[%clk 0:01:01]} 39. Nd6 {[%clk 0:00:15]}  Kxb3 {[%clk 0:00:59]} 40. Nb5 {[%clk 0:00:15]}  a4 {[%clk 0:00:57]} 41. Nd4+ {[%clk 0:00:15]}  Kc4 {[%clk 0:00:49]} 42. c6 {[%clk 0:00:15]}  Nxc6 {[%clk 0:00:49]} 43. Nxc6 {[%clk 0:00:16]}  a3 {[%clk 0:00:46]} 44. Ne5+ {[%clk 0:00:16]}  Kc3 {[%clk 0:00:46]} 45. Nd3 {[%clk 0:00:09]}  a2 {[%clk 0:00:46]} 0-1


[Site "https://www.chess.com"]

[Event "Titled Tuesday Blitz November 07 Early 2023"]
[White "SlippperyWhenWet"]
[Black "Asavasaetakul, Chawit"]
[BlackFideId "6204856"]
[WhiteElo "2317"]
[BlackElo "2638"]
[Result "1-0"]
[Round "1"]
[TimeControl "180+1"]
[Date "2023.11.07"]
[WhiteClock "0:00:35"]
[BlackClock "0:00:43"]
[Board "170"]

1. e4 {[%clk 0:02:59]}  d5 {[%clk 0:02:51]} 2. exd5 {[%clk 0:02:54]}  Nf6 {[%clk 0:02:46]} 3. d4 {[%clk 0:02:54]}  Bg4 {[%clk 0:02:35]} 4. Bb5+ {[%clk 0:02:48]}  Nbd7 {[%clk 0:02:15]} 5. Ne2 {[%clk 0:02:43]}  Nxd5 {[%clk 0:02:12]} 6. O-O {[%clk 0:02:39]}  c6 {[%clk 0:02:08]} 7. Bd3 {[%clk 0:02:35]}  e6 {[%clk 0:02:08]} 8. c3 {[%clk 0:02:34]}  Bd6 {[%clk 0:02:04]} 9. Qc2 {[%clk 0:02:30]}  Bh5 {[%clk 0:02:01]} 10. Ng3 {[%clk 0:02:27]}  Bg6 {[%clk 0:02:00]} 11. Nd2 {[%clk 0:02:26]}  N7f6 {[%clk 0:01:55]} 12. Nf3 {[%clk 0:02:22]}  O-O {[%clk 0:01:52]} 13. Bd2 {[%clk 0:02:19]}  Rc8 {[%clk 0:01:51]} 14. c4 {[%clk 0:02:16]}  Nf4 {[%clk 0:01:50]} 15. Bxf4 {[%clk 0:02:16]}  Bxf4 {[%clk 0:01:50]} 16. Rad1 {[%clk 0:02:12]}  Qb6 {[%clk 0:01:49]} 17. Bxg6 {[%clk 0:01:43]}  hxg6 {[%clk 0:01:46]} 18. b3 {[%clk 0:01:40]}  Rfd8 {[%clk 0:01:42]} 19. Ne4 {[%clk 0:01:39]}  Bb8 {[%clk 0:01:35]} 20. Nxf6+ {[%clk 0:01:39]}  gxf6 {[%clk 0:01:35]} 21. Qe4 {[%clk 0:01:38]}  Kg7 {[%clk 0:01:35]} 22. h3 {[%clk 0:01:37]}  Qa5 {[%clk 0:01:34]} 23. a4 {[%clk 0:01:35]}  Rd7 {[%clk 0:01:32]} 24. Rfe1 {[%clk 0:01:31]}  Rcd8 {[%clk 0:01:31]} 25. Rd3 {[%clk 0:01:17]}  a6 {[%clk 0:01:31]} 26. Red1 {[%clk 0:01:16]}  Qb4 {[%clk 0:01:28]} 27. Qe2 {[%clk 0:01:14]}  Ba7 {[%clk 0:01:27]} 28. g3 {[%clk 0:01:08]}  Qa5 {[%clk 0:01:22]} 29. Kg2 {[%clk 0:01:06]}  Qh5 {[%clk 0:01:21]} 30. Qe4 {[%clk 0:01:04]}  Bb8 {[%clk 0:01:15]} 31. g4 {[%clk 0:01:02]}  Qa5 {[%clk 0:01:14]} 32. Qe2 {[%clk 0:00:54]}  g5 {[%clk 0:01:14]} 33. Qe4 {[%clk 0:00:54]}  Qb4 {[%clk 0:01:08]} 34. Ng1 {[%clk 0:00:52]}  Qb6 {[%clk 0:01:00]} 35. Ne2 {[%clk 0:00:50]}  Qc7 {[%clk 0:01:00]} 36. Ng3 {[%clk 0:00:49]}  b5 {[%clk 0:00:57]} 37. Nh5+ {[%clk 0:00:48]}  Kf8 {[%clk 0:00:55]} 38. Qh7 {[%clk 0:00:46]}  Ke7 {[%clk 0:00:54]} 39. Ng3 {[%clk 0:00:44]}  Qf4 {[%clk 0:00:53]} 40. Re1 {[%clk 0:00:40]}  Rxd4 {[%clk 0:00:52]} 41. Nf5+ {[%clk 0:00:36]}  Qxf5 {[%clk 0:00:49]} 42. gxf5 {[%clk 0:00:33]}  Rxd3 {[%clk 0:00:49]} 43. Rxe6+ {[%clk 0:00:33]}  Kd7 {[%clk 0:00:49]} 44. Qxf7+ {[%clk 0:00:34]}  Kc8 {[%clk 0:00:48]} 45. Rxc6+ {[%clk 0:00:34]}  Bc7 {[%clk 0:00:43]} 46. Qxc7# {[%clk 0:00:35]} 1-0


[Site "https://www.chess.com"]

[Event "Titled Tuesday Blitz November 07 Early 2023"]
[White "Ismagilov, Damir"]
[Black "Zaksaite, Salomeja"]
[WhiteFideId "34199982"]
[BlackFideId "12801496"]
[WhiteElo "2632"]
[BlackElo "2308"]
[Result "1-0"]
[Round "1"]
[TimeControl "180+1"]
[Date "2023.11.07"]
[WhiteClock "0:01:20"]
[BlackClock "0:00:01"]
[Board "173"]

1. d4 {[%clk 0:02:59]}  Nf6 {[%clk 0:02:58]} 2. Bf4 {[%clk 0:02:56]}  g6 {[%clk 0:02:57]} 3. Nc3 {[%clk 0:02:52]}  d5 {[%clk 0:02:41]} 4. Qd2 {[%clk 0:02:50]}  Bg7 {[%clk 0:02:40]} 5. Bh6 {[%clk 0:02:49]}  O-O {[%clk 0:02:10]} 6. Bxg7 {[%clk 0:02:48]}  Kxg7 {[%clk 0:02:11]} 7. O-O-O {[%clk 0:02:48]}  c5 {[%clk 0:02:03]} 8. dxc5 {[%clk 0:02:47]}  e6 {[%clk 0:02:03]} 9. e4 {[%clk 0:02:47]}  Qc7 {[%clk 0:01:44]} 10. exd5 {[%clk 0:02:27]}  Qxc5 {[%clk 0:01:43]} 11. Nf3 {[%clk 0:02:22]}  exd5 {[%clk 0:01:19]} 12. Nxd5 {[%clk 0:02:23]}  Nxd5 {[%clk 0:01:16]} 13. Qxd5 {[%clk 0:02:22]}  Qxd5 {[%clk 0:00:59]} 14. Rxd5 {[%clk 0:02:21]}  Be6 {[%clk 0:00:59]} 15. Rd2 {[%clk 0:02:17]}  Nc6 {[%clk 0:00:59]} 16. Bb5 {[%clk 0:02:15]}  Rac8 {[%clk 0:00:58]} 17. Bxc6 {[%clk 0:02:14]}  Rxc6 {[%clk 0:00:55]} 18. Nd4 {[%clk 0:02:13]}  Ra6 {[%clk 0:00:55]} 19. Nxe6+ {[%clk 0:02:12]}  Rxe6 {[%clk 0:00:55]} 20. c3 {[%clk 0:02:07]}  Rfe8 {[%clk 0:00:44]} 21. Rhd1 {[%clk 0:02:07]}  h5 {[%clk 0:00:38]} 22. h4 {[%clk 0:02:05]}  Kf6 {[%clk 0:00:35]} 23. Kc2 {[%clk 0:02:03]}  a6 {[%clk 0:00:35]} 24. a4 {[%clk 0:01:58]}  R8e7 {[%clk 0:00:34]} 25. b4 {[%clk 0:01:56]}  Rc7 {[%clk 0:00:34]} 26. Kb3 {[%clk 0:01:55]}  Rec6 {[%clk 0:00:31]} 27. Rd3 {[%clk 0:01:54]}  Ke7 {[%clk 0:00:21]} 28. Re3+ {[%clk 0:01:53]}  Re6 {[%clk 0:00:20]} 29. Rxe6+ {[%clk 0:01:50]}  Kxe6 {[%clk 0:00:21]} 30. Rd8 {[%clk 0:01:49]}  Ke7 {[%clk 0:00:17]} 31. Rb8 {[%clk 0:01:49]}  Ke6 {[%clk 0:00:16]} 32. c4 {[%clk 0:01:49]}  Ke5 {[%clk 0:00:15]} 33. b5 {[%clk 0:01:45]}  axb5 {[%clk 0:00:15]} 34. cxb5 {[%clk 0:01:46]}  Kd4 {[%clk 0:00:12]} 35. a5 {[%clk 0:01:37]}  Kc5 {[%clk 0:00:11]} 36. b6 {[%clk 0:01:31]}  Re7 {[%clk 0:00:11]} 37. Rc8+ {[%clk 0:01:28]}  Kb5 {[%clk 0:00:11]} 38. Rc7 {[%clk 0:01:28]}  Re5 {[%clk 0:00:08]} 39. Rxb7 {[%clk 0:01:25]}  Re6 {[%clk 0:00:01]} 40. Ra7 {[%clk 0:01:20]} 1-0


[Site "https://www.chess.com"]

[Event "Titled Tuesday Blitz November 07 Early 2023"]
[White "Senft, Sean"]
[Black "Arabidze, Meri"]
[WhiteFideId "2044960"]
[BlackFideId "13604040"]
[WhiteElo "2307"]
[BlackElo "2631"]
[Result "1-0"]
[Round "1"]
[TimeControl "180+1"]
[Date "2023.11.07"]
[WhiteClock "0:00:08"]
[BlackClock "0:00:04"]
[Board "174"]

1. d4 {[%clk 0:03:00]}  f5 {[%clk 0:02:59]} 2. g3 {[%clk 0:03:00]}  Nf6 {[%clk 0:02:59]} 3. Bg2 {[%clk 0:03:00]}  e6 {[%clk 0:03:00]} 4. c4 {[%clk 0:02:59]}  d5 {[%clk 0:03:00]} 5. Nc3 {[%clk 0:02:59]}  c6 {[%clk 0:03:01]} 6. Bg5 {[%clk 0:02:57]}  Bd6 {[%clk 0:02:58]} 7. Nf3 {[%clk 0:02:56]}  O-O {[%clk 0:02:58]} 8. O-O {[%clk 0:02:56]}  Bd7 {[%clk 0:02:56]} 9. b3 {[%clk 0:02:54]}  Be8 {[%clk 0:02:56]} 10. Ne5 {[%clk 0:02:53]}  Bh5 {[%clk 0:02:55]} 11. f3 {[%clk 0:02:47]}  Nbd7 {[%clk 0:02:53]} 12. Nxd7 {[%clk 0:02:36]}  Qxd7 {[%clk 0:02:53]} 13. Qc2 {[%clk 0:02:33]}  Rae8 {[%clk 0:02:48]} 14. Bxf6 {[%clk 0:02:29]}  Rxf6 {[%clk 0:02:41]} 15. e4 {[%clk 0:02:29]}  fxe4 {[%clk 0:02:41]} 16. fxe4 {[%clk 0:02:29]}  Rxf1+ {[%clk 0:02:41]} 17. Rxf1 {[%clk 0:02:29]}  dxc4 {[%clk 0:02:39]} 18. bxc4 {[%clk 0:02:21]}  e5 {[%clk 0:02:39]} 19. d5 {[%clk 0:02:17]}  Bc5+ {[%clk 0:02:39]} 20. Kh1 {[%clk 0:02:17]}  Bd4 {[%clk 0:02:37]} 21. Ne2 {[%clk 0:02:04]}  c5 {[%clk 0:02:37]} 22. Nxd4 {[%clk 0:01:57]}  cxd4 {[%clk 0:02:38]} 23. c5 {[%clk 0:01:48]}  Rc8 {[%clk 0:02:38]} 24. Rf5 {[%clk 0:01:26]}  Bg6 {[%clk 0:02:10]} 25. Rxe5 {[%clk 0:01:25]}  Qb5 {[%clk 0:02:11]} 26. d6 {[%clk 0:01:04]}  Bf7 {[%clk 0:01:56]} 27. Bh3 {[%clk 0:00:54]}  d3 {[%clk 0:01:47]} 28. Qd1 {[%clk 0:00:48]}  Rd8 {[%clk 0:01:12]} 29. d7 {[%clk 0:00:27]}  Qb2 {[%clk 0:01:11]} 30. Re7 {[%clk 0:00:20]}  d2 {[%clk 0:01:02]} 31. Be6 {[%clk 0:00:16]}  Bxe6 {[%clk 0:00:24]} 32. Re8+ {[%clk 0:00:15]}  Kf7 {[%clk 0:00:25]} 33. Rxd8 {[%clk 0:00:16]}  Ke7 {[%clk 0:00:20]} 34. Rf8 {[%clk 0:00:10]}  Kxd7 {[%clk 0:00:20]} 35. Rf2 {[%clk 0:00:11]}  Ke7 {[%clk 0:00:12]} 36. Qxd2 {[%clk 0:00:09]}  Qe5 {[%clk 0:00:09]} 37. Qe3 {[%clk 0:00:08]}  h6 {[%clk 0:00:09]} 38. Rd2 {[%clk 0:00:08]}  a6 {[%clk 0:00:08]} 39. Qd4 {[%clk 0:00:08]}  Qxd4 {[%clk 0:00:06]} 40. Rxd4 {[%clk 0:00:09]}  Bxa2 {[%clk 0:00:06]} 41. Kg2 {[%clk 0:00:09]}  Be6 {[%clk 0:00:06]} 42. Kf3 {[%clk 0:00:10]}  Bd7 {[%clk 0:00:06]} 43. Kf4 {[%clk 0:00:10]}  Bc6 {[%clk 0:00:07]} 44. Ke5 {[%clk 0:00:09]}  a5 {[%clk 0:00:07]} 45. Rd3 {[%clk 0:00:08]}  a4 {[%clk 0:00:08]} 46. h4 {[%clk 0:00:08]}  Kf7 {[%clk 0:00:07]} 47. g4 {[%clk 0:00:08]}  g6 {[%clk 0:00:06]} 48. Kd6 {[%clk 0:00:07]}  Kf6 {[%clk 0:00:06]} 49. e5+ {[%clk 0:00:08]}  Kf7 {[%clk 0:00:06]} 50. e6+ {[%clk 0:00:08]}  Ke8 {[%clk 0:00:06]} 51. e7 {[%clk 0:00:08]}  h5 {[%clk 0:00:05]} 52. gxh5 {[%clk 0:00:08]}  gxh5 {[%clk 0:00:06]} 53. Rg3 {[%clk 0:00:08]}  Kf7 {[%clk 0:00:05]} 54. Rg1 {[%clk 0:00:08]}  a3 {[%clk 0:00:05]} 55. Rf1+ {[%clk 0:00:08]}  Kg7 {[%clk 0:00:05]} 56. Rf2 {[%clk 0:00:07]}  Kg6 {[%clk 0:00:05]} 57. Kc7 {[%clk 0:00:07]}  a2 {[%clk 0:00:03]} 58. Rxa2 {[%clk 0:00:07]}  Kf5 {[%clk 0:00:04]} 59. Kd8 {[%clk 0:00:06]}  Kg4 {[%clk 0:00:04]} 60. Re2 {[%clk 0:00:05]}  Kxh4 {[%clk 0:00:04]} 61. e8=Q {[%clk 0:00:06]}  Bxe8 {[%clk 0:00:04]} 62. Kxe8 {[%clk 0:00:07]}  Kg4 {[%clk 0:00:05]} 63. Kd7 {[%clk 0:00:07]}  h4 {[%clk 0:00:05]} 64. Kc7 {[%clk 0:00:08]}  h3 {[%clk 0:00:05]} 65. Kxb7 {[%clk 0:00:08]}  Kf3 {[%clk 0:00:04]} 66. Rb2 {[%clk 0:00:08]} 1-0


[Site "https://www.chess.com"]